bitfinex/quotes_BTCUSD_20220213
["timestamp","ask_amount","ask_price","bid_price","bid_amount"]
[1644768507968,0.00995349,42519.0,42515.0,0.25803502]
[1644768508168,0.00972486,42519.0,42515.0,0.25803502]
[1644768509127,0.01036393,42519.0,42515.0,0.0023984]
[1644768509730,0.01036393,42519.0,42516.0,0.05]
[1644768509935,0.0101353,42519.0,42517.0,0.3]
[1644768510130,0.00972486,42519.0,42517.0,0.358813]
[1644768510329,0.00972486,42519.0,42517.0,0.117623]
[1644768510529,0.00972486,42519.0,42517.0,0.058813]
[1644768510729,0.00972486,42519.0,42516.0,0.0523984]
[1644768510929,0.00972486,42519.0,42518.0,0.22230618]
[1644768511928,0.00972486,42519.0,42518.0,0.22470458]
[1644768512575,0.00022863,42526.0,42518.0,0.52470458]
[1644768512771,0.01,42529.0,42525.0,0.05]
[1644768512969,0.01,42529.0,42525.0,0.0023984]
[1644768512970,0.0002286,42527.0,42525.0,0.0023984]
[1644768513171,0.1434286,42539.0,42526.0,0.05]
[1644768513370,0.1187,42543.0,42529.0,0.05]
[1644768513569,0.26231261,42536.0,42526.0,0.30737334]
[1644768513770,0.35061498,42536.0,42530.0,0.06330017]
[1644768513975,0.35061498,42536.0,42530.0,0.06569857]
[1644768514172,0.26231261,42536.0,42530.0,0.06069857]
[1644768514373,0.058803,42536.0,42530.0,0.11069857]
[1644768514770,0.058803,42536.0,42530.0,0.06069857]
[1644768515073,0.117604,42541.0,42531.0,0.3]
[1644768515271,0.1187,42543.0,42531.0,0.3]
[1644768515272,0.2525238,42542.0,42539.0,0.08195448]
[1644768515472,0.058796,42540.0,42539.0,0.08195448]
[1644768515672,0.053796,42540.0,42539.0,0.08195448]
[1644768515970,0.053796,42540.0,42539.0,0.08315368]
[1644768516219,0.053796,42540.0,42539.0,0.08435288]
[1644768516623,0.058794,42542.0,42539.0,0.08435288]
[1644768516820,0.058794,42547.0,42539.0,0.08435288]
[1644768517020,0.01,42549.0,42547.0,0.20487]
[1644768517921,0.01,42549.0,42548.0,0.07462493]
[1644768518121,0.01,42549.0,42548.0,0.07702333]
[1644768518521,0.01,42549.0,42548.0,0.33462368]
[1644768518720,0.01,42549.0,42548.0,0.34039269]
[1644768519324,0.00042545,42551.0,42548.0,0.34039269]
[1644768519524,0.00042545,42551.0,42548.0,0.07702333]
[1644768519722,0.23968605,42556.0,42548.0,0.07702333]
[1644768520173,0.00035251,42552.0,42548.0,0.0023984]
[1644768520383,0.117575,42551.0,42548.0,0.0023984]
[1644768520772,0.0472,42550.0,42548.0,0.0023984]
[1644768520974,0.26033725,42549.0,42548.0,0.0023984]
[1644768521171,0.31447465,42549.0,42548.0,0.0023984]
[1644768521374,0.31447465,42549.0,42548.0,0.00298712]
[1644768521672,0.0641374,42549.0,42548.0,0.00298712]
[1644768522074,0.117575,42551.0,42548.0,0.00298712]
[1644768522474,0.05913851,42551.0,42548.0,0.00298712]
[1644768523272,0.05913851,42551.0,42548.0,0.07728555]
[1644768523476,0.058786,42551.0,42548.0,0.07728555]
[1644768523723,0.048786,42551.0,42548.0,0.07728555]
[1644768524925,0.048786,42551.0,42548.0,0.07890529]
[1644768525328,0.00037168,42552.0,42550.0,0.05]
[1644768525726,0.1348,42559.0,42550.0,0.05]
[1644768525727,0.01,42559.0,42550.0,0.05]
[1644768525925,0.01,42559.0,42555.0,0.05]
[1644768526128,0.01,42559.0,42558.0,0.23552045]
[1644768526327,0.068771,42559.0,42558.0,0.23552045]
[1644768527227,0.068771,42559.0,42558.0,0.23791885]
[1644768527486,0.063771,42559.0,42558.0,0.23791885]
[1644768527683,0.063771,42559.0,42558.0,0.0023984]
[1644768528086,0.37176945,42559.0,42558.0,0.0023984]
[1644768528286,0.72717986,42559.0,42558.0,0.0023984]
[1644768529085,0.41918141,42559.0,42558.0,0.0023984]
[1644768529586,0.41918141,42559.0,42558.0,9.84e-05]
[1644768529788,0.46638141,42559.0,42558.0,9.84e-05]
[1644768529987,0.117592,42557.0,42550.0,0.00058856]
[1644768530185,0.058794,42555.0,42550.0,0.00058856]
[1644768530385,0.0472,42554.0,42550.0,0.00058856]
[1644768530589,0.08187625,42553.0,42550.0,0.00058856]
[1644768530785,0.0472,42552.0,42550.0,0.00058856]
[1644768531220,0.117581,42551.0,42546.0,0.05]
[1644768531720,0.1178097,42551.0,42546.0,0.05]
[1644768532321,0.05879,42549.0,42546.0,0.05]
[1644768532521,0.11758,42549.0,42543.0,0.3096042]
[1644768532725,0.0472,42552.0,42546.0,0.05]
[1644768532927,0.00022922,42549.0,42547.0,0.3]
[1644768533128,0.00022922,42552.0,42548.0,0.05]
[1644768533323,0.00022922,42551.0,42549.0,0.00068765]
[1644768533523,0.117559,42557.0,42549.0,0.00068765]
[1644768533725,0.07969715,42554.0,42549.0,0.00068765]
[1644768534624,0.08,42553.0,42549.0,0.00068765]
[1644768534877,0.08022922,42553.0,42550.0,0.22615664]
[1644768535071,0.00126582,42551.0,42550.0,0.22615664]
[1644768535677,0.07761475,42553.0,42549.0,0.00068765]
[1644768535874,0.07719504,42552.0,42549.0,0.00068765]
[1644768536074,0.13574482,42552.0,42549.0,0.00068765]
[1644768536276,0.07696582,42550.0,42549.0,0.00068765]
[1644768536472,0.12416582,42550.0,42549.0,0.00068765]
[1644768536871,0.24176382,42550.0,42549.0,0.00068765]
[1644768539723,0.23676382,42550.0,42549.0,0.00068765]
[1644768541225,0.23707794,42550.0,42549.0,0.00068765]
[1644768549723,0.53424602,42550.0,42549.0,0.00068765]
[1644768550174,0.26511212,42550.0,42549.0,0.00068765]
[1644768550372,0.68812157,42550.0,42549.0,0.00068765]
[1644768551374,0.95,42549.0,42548.0,3.135e-05]
[1644768551576,0.9972,42549.0,42548.0,3.135e-05]
[1644768551773,0.9972,42549.0,42534.0,0.05]
[1644768551774,0.058808,42545.0,42534.0,0.05]
[1644768551973,0.117615,42546.0,42534.0,0.05]
[1644768551974,0.0472,42544.0,42534.0,0.05]
[1644768552171,0.36800078,42543.0,42534.0,0.05]
[1644768552473,0.9,42540.0,42526.0,0.27561104]
[1644768552677,0.9,42540.0,42515.0,0.222]
[1644768552678,0.5899,42535.0,42515.0,0.222]
[1644768552874,0.5899,42535.0,42515.0,0.05]
[1644768552875,0.02267,42522.0,42515.0,0.05]
[1644768553076,0.0472,42521.0,42514.0,0.0022]
[1644768553747,0.07544922,42516.0,42514.0,0.0022]
[1644768554051,0.0472,42515.0,42514.0,0.0022]
[1644768559686,0.0472,42515.0,42506.0,0.0043]
[1644768559687,0.0472,42515.0,42506.0,0.00169]
[1644768559890,0.0472,42515.0,42504.0,0.5726]
[1644768559891,0.058832,42513.0,42504.0,0.0153]
[1644768560089,0.058832,42513.0,42504.0,0.0103]
[1644768560090,0.05885,42511.0,42504.0,0.0103]
[1644768560290,0.05885,42511.0,42504.0,0.0053]
[1644768560291,0.0472,42510.0,42504.0,0.0053]
[1644768560486,0.35,42509.0,42503.0,0.0011]
[1644768560687,0.07438473,42504.0,42503.0,0.0011]
[1644768560889,0.12158473,42504.0,42503.0,0.0011]
[1644768561924,0.6,42503.0,42501.0,0.01]
[1644768562125,0.0472,42502.0,42501.0,0.01]
[1644768562326,0.39019931,42502.0,42501.0,0.01]
[1644768562725,0.49019931,42502.0,42501.0,0.01]
[1644768563227,1.04906831,42502.0,42501.0,0.01]
[1644768564426,1.04906831,42502.0,42493.0,0.05]
[1644768564427,0.8,42501.0,42493.0,0.05]
[1644768564627,0.117738,42499.0,42493.0,0.05]
[1644768564880,0.117738,42499.0,42491.0,0.01]
[1644768564881,0.0472,42498.0,42491.0,0.01]
[1644768565073,0.5472,42498.0,42491.0,0.01]
[1644768565273,0.07063415,42497.0,42491.0,0.01]
[1644768565474,0.41815485,42497.0,42491.0,0.01]
[1644768565675,0.66065514,42497.0,42491.0,0.01]
[1644768565875,0.76065514,42497.0,42491.0,0.01]
[1644768566075,1.26065514,42497.0,42491.0,0.01]
[1644768567276,0.96033444,42497.0,42491.0,0.01]
[1644768568377,0.96033444,42497.0,42492.0,0.24932415]
[1644768568623,0.6472,42497.0,42492.0,0.24932415]
[1644768568824,0.6,42497.0,42492.0,0.24932415]
[1644768569023,0.65,42497.0,42492.0,0.24932415]
[1644768569222,0.5,42497.0,42492.0,0.24932415]
[1644768569427,0.5,42497.0,42495.0,0.04869633]
[1644768569628,0.5,42497.0,42496.0,0.08072606]
[1644768570023,0.5434,42498.0,42496.0,0.0011]
[1644768570224,0.0434,42498.0,42496.0,0.0011]
[1644768571226,0.00022256,42497.0,42496.0,0.0011]
[1644768572672,0.04362256,42497.0,42496.0,0.0011]
[1644768572970,0.29274029,42497.0,42496.0,0.0011]
[1644768573370,0.71320789,42497.0,42496.0,0.0011]
[1644768573768,0.81320789,42497.0,42496.0,0.0011]
[1644768575068,0.81320789,42497.0,42496.0,2.98444]
[1644768578319,1.31320789,42497.0,42496.0,2.98444]
[1644768578720,1.31320789,42497.0,42496.0,2.631182]
[1644768578919,0.99274029,42497.0,42496.0,2.631182]
[1644768579318,0.99274029,42497.0,42496.0,2.137222]
[1644768581179,0.99266087,42497.0,42496.0,2.137222]
[1644768581381,0.99303403,42497.0,42496.0,2.137222]
[1644768582984,0.99303403,42497.0,42496.0,1.783954]
[1644768584328,1.59293403,42497.0,42496.0,1.783954]
[1644768585131,1.49303403,42497.0,42496.0,1.783954]
[1644768586129,1.49285375,42497.0,42496.0,1.783954]
[1644768586933,1.49285375,42497.0,42496.0,1.430685]
[1644768587575,1.66947775,42497.0,42496.0,1.430685]
[1644768589277,1.66947775,42497.0,42496.0,0.25319493]
[1644768589477,1.66947775,42497.0,42491.0,0.01]
[1644768589478,1.05,42496.0,42491.0,0.01]
[1644768589676,0.102283,42495.0,42491.0,0.01]
[1644768589877,0.278936,42495.0,42491.0,0.01]
[1644768590077,0.378936,42495.0,42491.0,0.01]
[1644768590279,0.44681762,42494.0,42491.0,0.01]
[1644768590477,1.1499,42492.0,42485.0,0.00150827]
[1644768590780,0.00240367,42488.0,42485.0,0.00150827]
[1644768590978,0.2,42490.0,42482.0,0.00037707]
[1644768590979,0.0434,42487.0,42482.0,0.00037707]
[1644768591222,0.0999,42484.0,42482.0,0.00037707]
[1644768591421,0.167788,42487.0,42482.0,0.00037707]
[1644768591422,0.0434,42483.0,42482.0,0.00037707]
[1644768591622,0.72724973,42483.0,42482.0,0.00037707]
[1644768591820,0.852192,42483.0,42482.0,0.00037707]
[1644768592024,0.852192,42483.0,42479.0,0.04759633]
[1644768592223,0.852192,42483.0,42480.0,0.00037707]
[1644768592224,0.1,42482.0,42480.0,0.00037707]
[1644768592422,0.1434,42482.0,42480.0,0.00037707]
[1644768592825,0.6434,42482.0,42480.0,0.00037707]
[1644768593223,0.920076,42482.0,42474.0,0.0023804]
[1644768593422,0.99023865,42482.0,42479.0,0.00037708]
[1644768593623,0.920076,42482.0,42479.0,0.00037708]
[1644768594422,0.920076,42482.0,42475.0,0.04869633]
[1644768594624,0.920076,42482.0,42479.0,0.00037708]
[1644768594879,0.48564874,42482.0,42479.0,0.00037708]
[1644768595073,0.376676,42482.0,42479.0,0.00037708]
[1644768595272,0.276676,42482.0,42479.0,0.00037708]
[1644768595673,0.276676,42482.0,42475.0,0.04869633]
[1644768595874,0.276676,42482.0,42479.0,0.0003501]
[1644768595875,0.320076,42482.0,42479.0,0.0003501]
[1644768596276,0.420076,42482.0,42480.0,0.04759633]
[1644768596475,0.42064037,42482.0,42480.0,0.04759633]
[1644768596885,0.42064037,42482.0,42463.0,0.001]
[1644768596886,0.34830435,42476.0,42463.0,0.001]
[1644768597083,0.5419,42466.0,42463.0,0.001]
[1644768597284,0.25491303,42464.0,42463.0,0.001]
[1644768597477,0.29831303,42464.0,42463.0,0.001]
[1644768597676,0.29831303,42464.0,42461.0,0.01]
[1644768597878,0.34831303,42464.0,42461.0,0.01]
[1644768598082,0.058925,42463.0,42461.0,0.01]
[1644768598379,0.0434,42462.0,42461.0,0.01]
[1644768598629,0.0934,42462.0,42461.0,0.01]
[1644768599824,0.211245,42462.0,42461.0,0.01]
[1644768600024,0.211245,42462.0,42460.0,0.0022]
[1644768600226,0.311145,42462.0,42460.0,0.0022]
[1644768600424,0.311245,42462.0,42460.0,0.0022]
[1644768600634,0.261145,42462.0,42460.0,0.0022]
[1644768601627,0.161245,42462.0,42460.0,0.0022]
[1644768602984,0.161245,42462.0,42461.0,0.06500445]
[1644768604079,0.161245,42462.0,42460.0,0.0022]
[1644768604280,0.0999,42461.0,42460.0,0.0022]
[1644768604478,0.117845,42462.0,42460.0,0.0022]
[1644768604680,0.0434,42461.0,42460.0,0.0022]
[1644768605279,0.0434,42461.0,42460.0,0.07201148]
[1644768606320,0.04358985,42461.0,42460.0,0.07201148]
[1644768608222,0.04358985,42461.0,42460.0,0.07169955]
[1644768608223,0.00018985,42461.0,42460.0,0.07169955]
[1644768608426,0.00018985,42461.0,42460.0,0.12169955]
[1644768608624,0.00040591,42462.0,42461.0,0.24798605]
[1644768609223,0.00040591,42462.0,42461.0,0.0003797]
[1644768609624,0.05930991,42462.0,42461.0,0.0003797]
[1644768610276,0.05930991,42462.0,42461.0,0.21997317]
[1644768610879,0.00040591,42462.0,42461.0,0.21997317]
[1644768611083,0.00020896,42462.0,42461.0,0.21997317]
[1644768612282,0.00020896,42462.0,42461.0,0.55159617]
[1644768613728,0.00020896,42462.0,42461.0,0.26997317]
[1644768614326,0.00020896,42462.0,42461.0,0.21997317]
[1644768616129,0.00038003,42462.0,42461.0,0.22012282]
[1644768616333,0.00038003,42462.0,42461.0,0.27012282]
[1644768616730,0.00038003,42462.0,42461.0,0.22012282]
[1644768616932,0.00038003,42462.0,42461.0,0.00052935]
[1644768617771,0.00038003,42462.0,42461.0,0.00042935]
[1644768620975,0.04378003,42462.0,42461.0,0.00042935]
[1644768621437,0.95,42461.0,42460.0,0.00129932]
[1644768621633,0.0434,42461.0,42460.0,0.0011]
[1644768621831,0.40969027,42461.0,42460.0,0.0011]
[1644768622031,0.24932654,42461.0,42460.0,0.0011]
[1644768622631,0.2434,42461.0,42460.0,0.0011]
[1644768622831,0.1434,42461.0,42460.0,0.0011]
[1644768623232,0.44622542,42461.0,42460.0,0.0011]
[1644768623435,0.44622542,42461.0,42458.0,0.0011]
[1644768623436,1.05,42459.0,42458.0,0.00040945]
[1644768623634,1.628026,42459.0,42458.0,0.00040945]
[1644768623832,0.65,42458.0,42452.0,0.00373803]
[1644768624034,0.0434,42457.0,42452.0,0.00373803]
[1644768624336,0.93773805,42456.0,42452.0,0.00373803]
[1644768624533,1.29229207,42455.0,42452.0,0.0021]
[1644768624732,0.30004537,42454.0,42452.0,0.0021]
[1644768624975,0.5038091,42454.0,42452.0,0.0021]
[1644768625173,0.1434,42454.0,42452.0,0.0021]
[1644768625376,0.47823473,42455.0,42454.0,0.2868]
[1644768625574,0.83490341,42455.0,42454.0,0.2868]
[1644768626177,0.52163473,42455.0,42454.0,0.2868]
[1644768626575,0.361271,42455.0,42454.0,0.2868]
[1644768626777,0.261271,42455.0,42454.0,0.2868]
[1644768627377,0.211271,42455.0,42454.0,0.2868]
[1644768627575,0.161271,42455.0,42454.0,0.2868]
[1644768629131,0.117871,42455.0,42454.0,0.2868]
[1644768629638,0.46044093,42455.0,42454.0,0.2868]
[1644768629832,0.71034093,42455.0,42452.0,0.00251629]
[1644768630032,0.0434,42454.0,42452.0,0.00251629]
[1644768630433,0.23871309,42453.0,42452.0,0.0021]
[1644768630635,0.28211309,42453.0,42452.0,0.0021]
[1644768631434,0.28211309,42453.0,42447.0,0.0022]
[1644768631435,1.108933,42452.0,42447.0,0.0022]
[1644768631635,1.108933,42452.0,42439.0,0.0011]
[1644768631636,1.62011,42451.0,42439.0,0.0011]
[1644768631835,2.16060414,42451.0,42439.0,0.0011]
[1644768632035,0.19793626,42450.0,42439.0,0.0011]
[1644768632239,0.0434,42449.0,42439.0,0.0011]
[1644768632485,0.27605199,42446.0,42439.0,0.0011]
[1644768632688,0.058941,42444.0,42437.0,0.0015]
[1644768632887,0.44393399,42446.0,42437.0,0.0015]
[1644768632888,2.29984963,42441.0,42437.0,0.0015]
[1644768633083,0.0934,42440.0,42437.0,0.0015]
[1644768633784,0.108942,42440.0,42437.0,0.0015]
[1644768633985,0.117884,42440.0,42437.0,0.0015]
[1644768634186,0.176826,42440.0,42437.0,0.0015]
[1644768634588,0.17673993,42440.0,42437.0,0.0015]
[1644768637226,0.21355887,42439.0,42437.0,0.0015]
[1644768638426,0.22393993,42440.0,42437.0,0.0015]
[1644768638827,0.22393993,42440.0,42437.0,0.0016948]
[1644768639629,0.41166318,42440.0,42437.0,0.0016948]
[1644768639883,0.51166318,42440.0,42437.0,0.0016948]
[1644768640980,0.00016179,42438.0,42437.0,0.0016948]
[1644768641179,0.00016179,42438.0,42437.0,0.0015]
[1644768643626,0.04736179,42438.0,42437.0,0.0015]
[1644768646331,0.00016179,42438.0,42437.0,0.0015]
[1644768647383,0.04736179,42438.0,42437.0,0.0015]
[1644768653433,0.5,42437.0,42436.0,0.0022948]
[1644768653632,0.5,42437.0,42435.0,0.0011]
[1644768653633,0.41500745,42437.0,42435.0,0.00171121]
[1644768653832,0.30645136,42436.0,42435.0,0.00171121]
[1644768654034,0.30645136,42436.0,42433.0,0.0022]
[1644768654035,0.35365136,42436.0,42433.0,0.0022]
[1644768654235,0.34195393,42435.0,42433.0,0.0022]
[1644768654435,0.43915393,42435.0,42433.0,0.0022]
[1644768655281,0.43734062,42437.0,42436.0,0.09586751]
[1644768655482,0.73934153,42437.0,42436.0,0.09586751]
[1644768655684,0.57889191,42437.0,42436.0,0.09586751]
[1644768656081,0.58298723,42437.0,42436.0,0.09586751]
[1644768656482,0.74346584,42437.0,42436.0,0.09586751]
[1644768656684,0.74346584,42437.0,42433.0,0.00261643]
[1644768656685,1.21258886,42436.0,42433.0,0.00261643]
[1644768656883,1.21258886,42436.0,42433.0,0.0022]
[1644768656884,1.0,42434.0,42433.0,0.0022]
[1644768657083,1.0472,42434.0,42433.0,0.0022]
[1644768657283,1.0472,42434.0,42421.0,0.01]
[1644768657284,0.058969,42430.0,42422.0,0.00166612]
[1644768657484,0.0472,42429.0,42422.0,0.00166612]
[1644768657683,0.25775544,42428.0,42422.0,0.00166612]
[1644768657983,0.0472,42427.0,42422.0,0.00166612]
[1644768658186,0.0972,42427.0,42421.0,0.01]
[1644768658384,0.0972,42427.0,42411.0,0.6343]
[1644768658385,1.05,42425.0,42413.0,0.05546347]
[1644768658636,0.26157821,42424.0,42413.0,0.05546347]
[1644768658936,0.03602018,42422.0,42413.0,0.05546347]
[1644768659233,0.0972,42421.0,42413.0,0.05546347]
[1644768659435,0.058984,42417.0,42411.0,0.0122]
[1644768659634,0.0472,42416.0,42411.0,0.0122]
[1644768660035,0.05,42415.0,42411.0,0.0122]
[1644768660234,0.0472,42414.0,42412.0,0.25292606]
[1644768661235,0.058986,42413.0,42412.0,0.25292606]
[1644768661435,0.106186,42413.0,42412.0,0.25292606]
[1644768663083,0.058986,42413.0,42412.0,0.25292606]
[1644768663284,0.11797,42416.0,42412.0,0.25292606]
[1644768663285,0.058967,42416.0,42412.0,0.25292606]
[1644768663686,0.058967,42416.0,42412.0,0.24292606]
[1644768664384,0.058967,42416.0,42412.0,0.24334263]
[1644768664584,0.058977,42413.0,42412.0,0.24334263]
[1644768665487,0.058962,42421.0,42412.0,0.54292606]
[1644768665688,0.058962,42421.0,42415.0,0.24788821]
[1644768665689,0.21944061,42420.0,42415.0,0.24788821]
[1644768665988,0.058962,42420.0,42412.0,0.54292606]
[1644768666247,0.17724023,42427.0,42412.0,0.54292606]
[1644768666248,0.00056285,42413.0,42412.0,0.54292606]
[1644768666450,0.0472,42427.0,42413.0,0.0011257]
[1644768666650,2.24305437,42414.0,42413.0,0.3011257]
[1644768666849,2.24305437,42414.0,42413.0,0.0011257]
[1644768667050,2.40353298,42414.0,42412.0,0.23905176]
[1644768667250,0.16047861,42414.0,42412.0,0.23905176]
[1644768667449,0.235914,42417.0,42412.0,0.23905176]
[1644768667651,0.117962,42414.0,42412.0,0.23905176]
[1644768668052,0.058981,42413.0,42412.0,0.23946832]
[1644768668849,0.37418946,42413.0,42412.0,0.23946832]
[1644768669050,0.058981,42413.0,42412.0,0.23905176]
[1644768669889,0.058981,42413.0,42412.0,0.23924378]
[1644768671290,0.0594368,42413.0,42412.0,0.23924378]
[1644768671686,0.0004558,42413.0,42412.0,0.23924378]
[1644768674530,0.0004558,42413.0,42412.0,0.57086678]
[1644768674728,0.0004558,42413.0,42412.0,0.23924378]
[1644768675830,0.0004558,42413.0,42412.0,0.23424378]
[1644768677782,0.0004558,42413.0,42412.0,0.53424378]
[1644768678181,0.0004558,42413.0,42412.0,0.23424378]
[1644768683040,0.0004558,42413.0,42412.0,0.18424378]
[1644768685388,0.16053421,42424.0,42421.0,0.07451319]
[1644768685584,0.05,42422.0,42421.0,0.07451319]
[1644768685786,0.0972,42422.0,42421.0,0.07451319]
[1644768685987,0.0472,42422.0,42421.0,0.07451319]
[1644768686186,0.106172,42422.0,42421.0,0.07451319]
[1644768686386,0.058972,42422.0,42421.0,0.31688556]
[1644768686785,0.058972,42422.0,42421.0,0.39055408]
[1644768687586,0.058972,42422.0,42421.0,0.14818171]
[1644768687788,0.108972,42422.0,42421.0,0.14818171]
[1644768688188,0.108972,42422.0,42421.0,0.07451319]
[1644768688189,0.058972,42422.0,42421.0,0.07451319]
[1644768689233,0.33744321,42426.0,42421.0,0.07451319]
[1644768689234,0.16053421,42426.0,42421.0,0.50794006]
[1644768689434,0.35420169,42436.0,42421.0,0.45794006]
[1644768689435,0.5999,42436.0,42421.0,0.45794006]
[1644768689637,0.5999,42436.0,42421.0,0.15794006]
[1644768689638,0.5,42436.0,42421.0,0.15794006]
[1644768689832,0.5,42436.0,42426.0,0.05]
[1644768689833,0.058942,42434.0,42426.0,0.05]
[1644768690132,0.28530414,42434.0,42431.0,0.07706669]
[1644768690431,0.058942,42434.0,42431.0,0.07706669]
[1644768690834,0.058942,42434.0,42426.0,0.05]
[1644768691431,0.058964,42430.0,42426.0,0.05]
[1644768692235,0.058964,42429.0,42426.0,0.05]
[1644768692480,0.108964,42429.0,42426.0,0.05]
[1644768692882,0.158964,42429.0,42426.0,0.05]
[1644768693082,0.058961,42428.0,42426.0,0.05]
[1644768693282,0.176881,42428.0,42426.0,0.05]
[1644768695681,0.058967,42426.0,42424.0,0.08128468]
[1644768695881,0.058967,42426.0,42424.0,0.05]
[1644768695882,0.117933,42426.0,42424.0,0.05]
[1644768696133,0.397933,42426.0,42421.0,0.07484419]
[1644768696432,0.338966,42426.0,42421.0,0.07484419]
[1644768696832,0.38126445,42425.0,42416.0,0.30019202]
[1644768697035,0.08699029,42420.0,42416.0,0.3]
[1644768697232,0.05,42420.0,42416.0,0.30019202]
[1644768697433,0.05,42420.0,42416.0,0.00019202]
[1644768697633,0.217948,42421.0,42415.0,0.00019202]
[1644768697934,0.235884,42419.0,42415.0,0.00019202]
[1644768698131,0.235884,42419.0,42414.0,0.07023928]
[1644768698132,0.335884,42419.0,42416.0,0.00039971]
[1644768698334,0.394851,42419.0,42416.0,0.00039971]
[1644768698533,0.17692,42418.0,42416.0,0.00039971]
[1644768698933,0.235887,42418.0,42416.0,0.00039971]
[1644768699131,0.235887,42418.0,42415.0,0.00019202]
[1644768699330,0.235887,42418.0,42415.0,0.00039972]
[1644768699532,0.117933,42417.0,42415.0,0.00059174]
[1644768699991,0.058973,42416.0,42415.0,0.00059174]
[1644768700391,0.058973,42416.0,42415.0,0.00019202]
[1644768700587,0.058973,42416.0,42414.0,0.0704313]
[1644768701393,0.117931,42415.0,42414.0,0.0704313]
[1644768701591,0.117931,42415.0,42414.0,0.34044373]
[1644768701790,0.117931,42415.0,42414.0,0.34025171]
[1644768701994,0.117931,42415.0,42414.0,0.34044373]
[1644768702192,0.117931,42415.0,42414.0,0.0704313]
[1644768703093,0.117931,42415.0,42414.0,0.07023928]
[1644768704031,0.117931,42415.0,42413.0,0.00019202]
[1644768704231,0.294871,42415.0,42412.0,0.18464469]
[1644768704430,0.05898,42414.0,42412.0,0.18464469]
[1644768705233,0.117959,42414.0,42412.0,0.18424378]
[1644768706232,0.117959,42414.0,42412.0,0.26390635]
[1644768707231,0.117959,42414.0,42412.0,0.45900838]
[1644768708482,1.577932,42413.0,42405.0,0.00270157]
[1644768708683,0.05,42406.0,42405.0,0.0011]
[1644768708886,0.05,42406.0,42404.0,0.0065008]
[1644768709181,0.6368,42405.0,42404.0,0.0065008]
[1644768709382,0.6368,42405.0,42403.0,0.0032]
[1644768709383,1.05,42404.0,42403.0,0.0032]
[1644768709583,0.6368,42404.0,42403.0,0.0032]
[1644768709780,0.79729897,42404.0,42403.0,0.0032]
[1644768709979,0.6368,42404.0,42402.0,0.031]
[1644768710181,0.05,42403.0,42402.0,0.031]
[1644768710384,0.55,42402.0,42395.0,0.00107323]
[1644768710585,0.05,42400.0,42395.0,0.00107323]
[1644768710783,0.0472,42399.0,42395.0,0.00107323]
[1644768711236,0.106201,42399.0,42393.0,0.0021]
[1644768711435,0.106201,42399.0,42397.0,0.06928045]
[1644768711837,0.106201,42399.0,42397.0,0.0022984]
[1644768712835,0.106201,42399.0,42394.0,0.000677]
[1644768713039,0.106201,42399.0,42391.0,0.0710806]
[1644768713236,0.236013,42397.0,42396.0,0.08932027]
[1644768713440,0.22421,42397.0,42396.0,0.08932027]
[1644768713840,0.17701,42397.0,42396.0,0.08932027]
[1644768714137,0.17701,42397.0,42391.0,0.0710806]
[1644768714339,0.059006,42394.0,42391.0,0.0710806]
[1644768714538,0.0472,42393.0,42391.0,0.0710806]
[1644768714989,0.0472,42393.0,42391.0,0.0121806]
[1644768715188,0.0472,42393.0,42391.0,0.0071806]
[1644768715491,0.059011,42393.0,42391.0,0.0071806]
[1644768716087,0.236041,42393.0,42391.0,0.0071806]
[1644768716486,0.0972,42392.0,42391.0,0.0071806]
[1644768716989,0.0972,42392.0,42386.0,0.0011]
[1644768716990,1.05,42389.0,42386.0,0.0011]
[1644768717191,1.1472,42389.0,42386.0,0.0011]
[1644768717387,0.6,42387.0,42383.0,0.00160211]
[1644768717588,0.05,42384.0,42383.0,0.00160211]
[1644768717791,0.0972,42384.0,42383.0,0.00160211]
[1644768718192,0.0972,42384.0,42382.0,0.0011]
[1644768718392,0.059035,42382.0,42372.0,0.02819602]
[1644768718638,0.11807,42383.0,42373.0,0.331623]
[1644768718639,0.165275,42381.0,42373.0,0.331623]
[1644768718838,0.0472,42380.0,42373.0,0.331623]
[1644768719039,0.07,42385.0,42375.0,0.331623]
[1644768719241,0.07,42385.0,42377.0,0.331623]
[1644768719440,0.059016,42382.0,42378.0,0.24018226]
[1644768719639,0.059016,42382.0,42379.0,0.41998479]
[1644768719838,0.059016,42382.0,42380.0,0.331623]
[1644768720038,0.059016,42382.0,42379.0,0.08876232]
[1644768720438,0.00040048,42385.0,42379.0,0.08876232]
[1644768720843,0.059013,42386.0,42379.0,0.08836179]
[1644768721140,0.00040048,42385.0,42380.0,0.28388176]
[1644768721339,0.0003284,42384.0,42382.0,0.00014632]
[1644768721739,0.0003284,42384.0,42380.0,0.27902808]
[1644768722139,0.0003284,42384.0,42381.0,0.00040052]
[1644768723187,0.0003284,42384.0,42380.0,0.2789547]
[1644768723587,0.059019,42383.0,42380.0,0.2789547]
[1644768723788,0.059017,42382.0,42380.0,0.2789547]
[1644768723988,0.059019,42383.0,42382.0,0.118034]
[1644768724191,0.109019,42383.0,42382.0,0.118034]
[1644768725391,0.17978468,42383.0,42382.0,0.069534]
[1644768725589,0.118038,42383.0,42382.0,0.069534]
[1644768726239,0.11819338,42383.0,42382.0,0.069534]
[1644768726439,0.1183427,42383.0,42382.0,0.069534]
[1644768726640,0.1683427,42383.0,42382.0,0.069534]
[1644768727241,0.2155427,42383.0,42382.0,0.069534]
[1644768728844,0.39015828,42388.0,42382.0,0.069534]
[1644768728845,0.03298305,42388.0,42382.0,0.069534]
[1644768729043,0.0472,42387.0,42382.0,0.069534]
[1644768729344,0.40268929,42389.0,42382.0,0.069534]
[1644768729345,0.0472,42386.0,42382.0,0.14772279]
[1644768729541,0.059019,42383.0,42382.0,0.14772279]
[1644768729743,0.106219,42383.0,42382.0,0.14772279]
[1644768730183,0.106219,42383.0,42382.0,0.069534]
[1644768731385,0.1067413,42383.0,42382.0,0.069534]
[1644768732285,0.1067413,42383.0,42382.0,0.06972157]
[1644768732886,0.1067413,42383.0,42382.0,0.069534]
[1644768733087,0.1567413,42383.0,42382.0,0.069534]